bitfinex/quotes_ETHUSD_20260203
["timestamp","ask_amount","ask_price","bid_price","bid_amount"]
[1770135154203,11.0254634,2280.7,2279.3,0.919]
[1770135154426,1.10254634,2280.6,2279.3,0.919]
[1770135154801,0.57754229,2280.5,2279.0,0.001]
[1770135155029,11.60190569,2280.5,2279.0,0.001]
[1770135155230,11.1267634,2279.8,2277.9,0.02173488]
[1770135155401,11.0243634,2279.8,2278.2,1.11905735]
[1770135155601,11.60190569,2279.8,2278.0,1.11918317]
[1770135155826,11.0243634,2279.8,2278.1,0.919]
[1770135156027,12.18096598,2279.8,2278.1,0.919]
[1770135156341,1.42182402,2279.7,2278.2,0.02173488]
[1770135156504,1.99936631,2279.7,2278.2,1.0973403]
[1770135156700,1.99936631,2279.7,2278.1,0.02173488]
[1770135156922,0.1024,2279.4,2277.9,1.21275418]
[1770135157230,1.09682797,2279.3,2277.9,0.919]
[1770135157633,1.09682797,2279.3,2277.9,2.01648279]
[1770135157843,1.09682797,2279.3,2277.9,2.01648817]
[1770135158007,1.09682797,2279.3,2278.1,0.02173488]
[1770135158208,1.09682797,2279.3,2278.2,0.02173488]
[1770135158438,0.67124765,2279.2,2278.2,0.02173488]
[1770135159305,1.09692422,2279.1,2278.2,0.02173488]
[1770135159726,1.09692422,2279.1,2278.0,0.919]
[1770135160839,1.09692422,2279.1,2278.1,1.09740426]
[1770135161004,1.09692422,2279.1,2278.1,1.11913914]
[1770135161206,1.09692422,2279.1,2278.2,1.11906577]
[1770135161436,5.61546811,2279.4,2278.5,0.02173488]
[1770135161437,1.09682797,2279.3,2278.5,0.02173488]
[1770135161605,1.09682797,2279.3,2277.9,1.11921889]
[1770135161606,1.65837478,2279.3,2277.9,1.11921889]
[1770135161806,1.65837478,2279.3,2278.1,2.03811044]
[1770135162030,1.65837478,2279.3,2278.2,1.0973554]
[1770135162232,1.09682797,2279.3,2278.3,0.02173488]
[1770135162437,1.09682797,2279.3,2278.3,0.94173488]
[1770135162840,4.38711941,2279.6,2278.3,0.94173488]
[1770135163006,4.38711941,2279.6,2278.4,0.02173488]
[1770135163329,5.37413748,2279.6,2278.5,0.02173488]
[1770135163836,16.39850088,2279.6,2278.4,0.001]
[1770135164627,5.37413748,2279.6,2278.5,0.02173488]
[1770135164837,4.38711941,2279.6,2278.8,0.02173488]
[1770135165041,4.38711941,2279.6,2278.8,0.94173488]
[1770135165534,1.09629889,2280.4,2278.9,1.11875537]
[1770135165720,1.09629889,2280.4,2279.1,0.02173488]
[1770135166110,1.09629889,2280.4,2279.4,0.02173488]
[1770135166308,2.17496789,2280.4,2279.4,0.02173488]
[1770135166820,2.17496789,2280.4,2279.1,0.92]
[1770135167843,2.17496789,2280.4,2279.0,1.09696912]
[1770135168251,2.17496789,2280.4,2279.2,0.02173488]
[1770135168635,13.19933129,2280.4,2279.0,0.92]
[1770135168808,1.90820691,2280.3,2279.1,1.11865018]
[1770135169017,1.09620275,2280.6,2279.8,0.02173488]
[1770135169240,1.09620275,2280.6,2279.7,0.94173488]
[1770135169423,1.09620275,2280.6,2279.8,0.02173488]
[1770135169614,0.0011,2280.7,2279.8,0.02173488]
[1770135169832,0.0011,2280.7,2279.7,2.03834993]
[1770135170039,0.0011,2280.7,2279.7,0.64685761]
[1770135170341,0.0011,2280.7,2279.8,1.09656723]
[1770135170509,0.0011,2280.7,2279.7,1.11833698]
[1770135171314,0.0011,2280.7,2279.7,0.02173488]
[1770135171618,0.0011,2280.7,2279.7,1.11836757]
[1770135173111,0.0011,2280.7,2279.7,0.02173488]
[1770135173335,0.0011,2280.7,2279.7,1.60813199]
[1770135173515,0.0011,2280.7,2279.7,2.704764]
[1770135173715,0.0011,2280.7,2279.7,1.60813199]
[1770135174759,0.0011,2280.7,2279.7,2.70476249]
[1770135175052,1.09701443,2281.2,2280.0,9.99750908]
[1770135175252,1.09693275,2281.4,2280.1,1.0019244]
[1770135175543,1.09693275,2281.4,2280.3,0.02173488]
[1770135175756,0.0011,2281.4,2280.5,1.09625082]
[1770135176045,0.0011,2281.6,2280.8,0.02173488]
[1770135177125,0.0011,2281.6,2280.7,0.02173488]
[1770135177457,0.0011,2281.6,2280.6,9.99750908]
[1770135177458,0.0011,2280.7,2279.9,1.11824642]
[1770135177616,0.0011,2280.7,2280.0,2.01548764]
[1770135177812,0.0011,2280.7,2280.0,2.01545368]
[1770135178046,1.09586639,2281.3,2280.0,12.01296276]
[1770135178216,2.08214614,2281.3,2280.1,1.66381758]
[1770135178743,1.09586639,2281.3,2280.1,1.66381758]
[1770135178946,1.09586639,2281.3,2280.1,11.63959178]
[1770135179250,1.09586639,2281.3,2280.2,0.02173488]
[1770135179815,0.0011,2281.6,2280.3,1.09634697]
[1770135180233,0.0011,2281.6,2280.2,1.11810348]
[1770135180436,1.57652767,2281.6,2280.3,1.71434053]
[1770135180766,1.09553023,2282.0,2281.3,0.02173488]
[1770135181048,0.0011,2282.1,2281.5,0.02173488]
[1770135181348,1.09658943,2282.1,2281.2,0.919]
[1770135181842,0.0011,2282.1,2281.2,2.01487757]
[1770135182058,0.0011,2282.1,2280.8,0.02173488]
[1770135182257,0.0011,2282.1,2280.9,0.919]
[1770135182771,10.27260535,2281.5,2279.8,1.09658718]
[1770135183069,0.1024,2281.8,2280.1,0.02173488]
[1770135183249,0.1024,2281.8,2280.3,0.02173488]
[1770135183436,11.52614076,2281.8,2280.1,0.919]
[1770135183630,1.23180053,2281.8,2280.8,4.38440399]
[1770135183829,0.0011,2282.1,2280.9,0.94073488]
[1770135184041,0.0011,2282.1,2280.4,0.02173488]
[1770135184042,10.27260535,2281.8,2280.4,0.919]
[1770135184247,10.27260535,2281.8,2280.2,2.0153842]
[1770135184448,10.29434023,2281.6,2280.1,0.919]
[1770135184654,11.38370197,2281.5,2279.5,9.99750908]
[1770135184829,10.27260535,2281.4,2280.0,1.09648837]
[1770135185034,10.27260535,2281.4,2279.9,1.09651522]
[1770135185232,10.85014764,2281.4,2280.2,1.0963771]
[1770135185438,1.08936174,2281.5,2280.3,0.919]
[1770135185630,10.27260535,2281.8,2280.3,0.919]
[1770135185834,11.3684237,2281.4,2279.8,1.1182742]
[1770135186028,11.94596599,2281.4,2280.0,0.919]
[1770135186232,11.3684237,2281.4,2280.0,0.919]
[1770135186456,3.11148889,2281.4,2280.0,0.919]
[1770135186635,1.09581835,2281.4,2280.1,9.99750908]
[1770135186836,1.09581835,2281.4,2280.2,0.02173488]
[1770135187031,1.09581835,2281.4,2280.1,9.99750908]
[1770135187238,1.09581835,2281.4,2280.2,0.919]
[1770135187439,11.94596599,2281.4,2280.3,1.09165091]
[1770135187637,11.3684237,2281.4,2279.8,2.01555733]
[1770135187865,11.94596599,2281.4,2279.8,0.919]
[1770135188054,0.57754229,2281.3,2279.9,0.919]
[1770135188450,0.57754229,2281.3,2279.8,0.02173488]
[1770135188659,1.09658698,2282.1,2280.9,0.02173488]
[1770135188872,11.36919233,2282.1,2280.0,9.9757742]
[1770135189043,10.29434023,2282.0,2280.1,12.04833189]
[1770135189378,0.0011,2281.4,2280.2,0.919]
[1770135190076,1.09691835,2281.4,2280.2,0.919]
[1770135190246,0.02173488,2281.2,2279.7,9.9757742]
[1770135190577,0.02173488,2281.0,2279.8,3.45181915]
[1770135190803,0.02173488,2281.1,2279.8,2.01558499]
[1770135190982,1.09691835,2281.4,2279.8,10.8947742]
[1770135191147,0.0011,2281.4,2280.6,0.02173488]
[1770135191762,0.0011,2281.4,2280.6,0.919]
[1770135191963,0.0011,2281.4,2280.1,9.99750908]
[1770135192260,0.0011,2281.4,2280.5,1.09624723]
[1770135192435,0.0011,2281.4,2280.4,1.09629746]
[1770135192637,0.0011,2281.4,2280.4,1.09627225]
[1770135192963,0.0011,2281.4,2279.6,9.9757742]
[1770135193149,0.0011,2281.4,2280.3,1.09633452]
[1770135193350,0.0011,2281.4,2280.3,1.09632335]
[1770135193550,0.0011,2281.4,2280.2,1.09636165]
[1770135193735,0.0011,2281.4,2280.3,0.54820622]
[1770135194636,0.0011,2281.4,2280.3,1.64452713]
[1770135194838,0.0011,2281.4,2280.3,1.64454963]
[1770135195769,0.0011,2281.4,2280.4,0.919]
[1770135196275,0.0011,2281.4,2280.4,1.09629054]
[1770135196641,0.0011,2281.4,2280.5,0.25634968]
[1770135198212,0.0011,2281.4,2280.5,1.35259827]
[1770135198507,0.0011,2281.4,2280.6,0.02173488]
[1770135198957,0.0011,2281.6,2281.1,0.02173488]
[1770135199684,0.0011,2281.6,2280.7,0.02173488]
[1770135199860,0.0011,2281.6,2280.8,0.919]
[1770135200061,0.0011,2281.6,2280.8,0.94073488]
[1770135200282,0.0011,2281.6,2281.0,1.1177454]
[1770135200897,0.0011,2282.1,2281.1,0.02173488]
[1770135201066,0.0011,2282.4,2281.7,0.02173488]
[1770135201266,0.0011,2282.6,2282.1,0.02173488]
[1770135201468,1.09634238,2282.6,2281.8,0.94073488]
[1770135201703,1.64407353,2282.6,2281.0,2.63407834]
[1770135201991,1.64407353,2282.6,2281.4,0.02173488]
[1770135202178,1.09635196,2282.6,2281.7,10.56221148]
[1770135202383,1.09635196,2282.6,2281.8,0.919]
[1770135204167,0.0011,2282.6,2281.8,0.919]
[1770135204986,0.0011,2282.6,2281.6,1.11743205]
[1770135205190,0.0011,2282.6,2281.6,0.919]
[1770135205387,0.0011,2282.6,2281.7,1.09566586]
[1770135205597,0.0011,2282.6,2281.8,1.0956226]
[1770135205818,0.0011,2282.6,2281.9,0.54998625]
[1770135206000,0.0011,2282.6,2281.6,2.03641349]
[1770135206203,0.0011,2282.6,2281.5,2.0147643]
[1770135206505,0.0011,2282.6,2281.3,1.095853]
[1770135206806,0.0011,2282.6,2281.3,2.01483218]
[1770135207301,0.0011,2282.6,2281.4,1.09581147]
[1770135207866,0.0011,2282.6,2281.3,0.919]
[1770135208365,1.18211865,2282.6,2281.3,0.919]
[1770135208565,1.18211865,2282.6,2281.3,2.01486473]
[1770135208771,1.18211865,2282.6,2281.3,0.919]
[1770135208772,12.4580484,2282.6,2281.3,0.919]
[1770135209005,11.27702975,2282.6,2281.3,0.919]
[1770135209303,10.7085696,2282.4,2280.9,1.0938244]
[1770135209471,10.7096696,2282.6,2281.2,0.02173488]
[1770135209670,10.7085696,2282.4,2280.9,0.02173488]
[1770135209994,10.7085696,2282.4,2280.9,1.0960562]
[1770135210306,1.09538623,2282.3,2280.7,2.03685123]
[1770135210472,1.09538623,2282.3,2280.4,4.40689551]
[1770135210473,10.73029646,2282.1,2280.5,0.25634968]
[1770135210673,10.73029646,2282.1,2280.1,1.53906782]
[1770135210674,9.03191781,2281.5,2280.1,0.001]
[1770135210905,9.59927796,2281.5,2280.1,0.001]
[1770135211197,9.18545224,2281.1,2279.9,0.001]
[1770135211500,0.91854522,2281.0,2279.9,0.001]
[1770135211800,0.1024,2280.9,2279.9,0.001]
[1770135212000,9.18654611,2280.9,2279.9,0.001]
[1770135212214,1.09610662,2280.8,2279.9,0.001]
[1770135212819,0.1024,2280.7,2279.9,0.001]
[1770135213116,11.30940323,2280.7,2278.9,1.09799518]
[1770135213336,11.30940323,2280.7,2279.1,1.09692207]
[1770135213624,10.74204308,2280.7,2279.1,1.09692207]
[1770135214027,10.74204308,2280.7,2280.1,0.001]
[1770135214028,1.53368394,2280.7,2280.1,0.001]
[1770135214211,1.53368394,2280.7,2279.3,0.02173488]
[1770135214212,1.09620275,2280.6,2279.3,0.02173488]
[1770135214698,1.09620275,2280.6,2279.9,0.001]
[1770135217326,1.09620275,2280.6,2279.2,1.11857485]
[1770135217494,1.09620275,2280.6,2279.2,0.02173488]
[1770135217697,9.19151378,2280.4,2279.2,1.60904178]
[1770135218025,7.582472,2280.2,2278.9,0.001]
[1770135218226,0.02173488,2280.1,2278.9,0.001]
[1770135218432,0.02173488,2280.1,2278.6,0.001]
[1770135218433,7.60320688,2279.9,2278.6,0.001]
[1770135218618,1.7911433,2279.8,2278.6,0.001]
[1770135218929,0.919,2279.8,2278.6,0.001]
[1770135219120,0.919,2279.8,2278.6,10.5414766]
[1770135220595,1.09663552,2279.7,2278.7,11.63759337]
[1770135221105,1.09639505,2280.2,2278.7,11.63759337]
[1770135221309,1.09639505,2280.2,2279.1,10.5404766]
[1770135221537,2.08313304,2280.2,2279.2,1.05622115]
[1770135221706,1.09639505,2280.2,2279.2,1.05622115]
[1770135222217,1.09633266,2280.4,2279.5,0.02173488]
[1770135222404,1.09605857,2280.9,2279.8,10.56221148]
[1770135222602,1.09605857,2280.9,2279.9,1.09653932]
[1770135222850,2.01457962,2281.0,2280.0,10.56221148]
[1770135223128,1.09599841,2281.1,2280.1,1.16804857]
[1770135223726,1.09581835,2281.4,2280.1,11.73026005]
[1770135223929,1.09579925,2281.5,2280.6,0.02173488]
[1770135224320,1.09672625,2281.9,2280.6,0.02173488]
[1770135224519,1.09672625,2281.9,2280.8,0.02173488]
[1770135224520,1.09562625,2281.8,2280.8,0.02173488]
[1770135224830,0.0011,2281.9,2280.9,0.02173488]
[1770135225038,0.0011,2281.9,2280.9,1.09605838]
[1770135225520,0.0011,2281.9,2280.8,12.71885257]
[1770135225905,0.0011,2281.9,2280.9,1.09605588]
[1770135226130,0.0011,2281.9,2281.0,1.71031268]
[1770135227616,0.0011,2281.1,2281.0,2.80631743]
[1770135228139,0.0011,2281.9,2281.0,2.82805231]
[1770135228606,0.0011,2281.9,2281.0,13.36852891]
[1770135228932,0.0011,2281.9,2281.1,10.56221148]
[1770135229111,0.0011,2281.9,2281.2,1.33902638]
[1770135229932,0.0011,2282.1,2281.4,10.56221148]
[1770135230428,0.0011,2282.1,2281.4,0.02173488]
[1770135230740,0.0011,2282.1,2281.1,10.86026105]
[1770135231124,0.0011,2282.1,2281.1,10.83852617]
[1770135231442,0.0011,2282.1,2281.1,13.01675703]
[1770135231632,0.0011,2282.1,2281.1,12.09775703]
[1770135231820,0.0011,2282.1,2280.8,2.01508572]
[1770135232204,0.0011,2282.1,2280.8,0.919]
[1770135232603,0.56846015,2282.1,2280.8,0.919]
[1770135232809,1.09553023,2282.0,2280.7,12.85367866]
[1770135233031,1.09553023,2282.0,2280.7,11.75752617]
[1770135233239,0.54787512,2281.9,2280.8,1.28536868]
[1770135235214,1.09562625,2281.8,2280.8,1.28536868]
[1770135235413,1.09562625,2281.8,2280.4,0.02173488]
[1770135235636,1.6629864,2281.8,2280.4,0.02173488]
[1770135235844,1.09562625,2281.8,2280.4,0.02173488]
[1770135236009,7.75660743,2281.7,2279.9,10.51437148]
[1770135236337,8.32396758,2281.7,2279.9,11.5891674]
[1770135236539,0.1024,2281.5,2280.0,1.25299023]
[1770135236727,1.0214,2281.5,2280.0,1.25299023]
[1770135236933,1.58876015,2281.5,2280.0,1.25299023]
[1770135237444,1.09581835,2281.4,2280.0,1.25299023]
[1770135237737,1.6631785,2281.4,2280.0,1.25299023]
[1770135237942,0.70678519,2281.3,2280.1,1.28638729]
[1770135238314,0.70678519,2281.3,2280.2,10.51437148]
[1770135238514,0.70678519,2281.3,2280.3,0.919]
[1770135238714,1.09581835,2281.4,2280.6,10.51437148]
[1770135238934,1.0966268,2282.1,2281.0,10.51437148]
[1770135239146,1.09660558,2282.1,2281.5,0.02173488]
[1770135239309,0.0011,2282.1,2281.5,0.02173488]
[1770135239514,0.0011,2282.6,2281.9,0.02173488]
[1770135239740,0.0011,2282.6,2282.0,0.02173488]
[1770135239937,0.0011,2282.6,2281.9,0.02173488]
[1770135240442,0.0011,2283.4,2282.8,0.02173488]
[1770135240608,4.37806427,2284.2,2282.8,0.02173488]
[1770135240609,4.37810869,2284.1,2282.9,0.94073488]
[1770135240815,1.11461853,2284.0,2283.0,1.09551064]
[1770135241015,7.78428566,2283.9,2282.0,0.919]
[1770135241247,7.68188566,2283.6,2281.8,10.4926366]
[1770135241444,0.1024,2283.3,2281.8,11.4116366]
[1770135241751,0.66006927,2283.3,2281.8,11.4116366]
[1770135241916,0.1024,2283.1,2281.5,0.02173488]
[1770135242244,0.1024,2282.9,2281.4,0.919]
[1770135243274,13.90946231,2282.7,2281.0,10.4926366]
[1770135243449,1.09524226,2282.6,2281.1,1.05143715]
[1770135243760,1.66260241,2282.6,2281.1,11.54407375]
[1770135243913,1.09524226,2282.6,2281.2,10.51437148]
[1770135244117,0.55786113,2282.5,2281.3,1.26835012]
[1770135244918,0.55786113,2282.5,2280.7,10.51437148]
[1770135244919,6.11494701,2282.3,2280.4,0.001]
[1770135245131,0.02173488,2282.1,2280.4,12.50891233]
[1770135245347,6.21734701,2281.8,2280.4,0.001]
[1770135245515,1.0957223,2281.6,2280.4,0.001]
[1770135245720,0.55003464,2281.5,2280.4,0.001]
[1770135246942,0.1024,2281.4,2280.1,0.001]
[1770135247121,1.0214,2281.4,2280.1,0.001]
[1770135247525,1.09586639,2281.3,2280.1,0.001]
[1770135248422,8.40464849,2281.2,2280.1,0.001]
[1770135248652,0.1024,2281.0,2279.4,0.001]
[1770135248946,0.1024,2280.8,2279.4,0.001]
[1770135249522,1.09615468,2280.7,2279.4,1.0977741]
[1770135249738,1.09615468,2280.7,2279.4,10.4936366]
[1770135249966,0.55831734,2280.6,2279.5,1.05153715]
[1770135251261,1.09615468,2280.7,2279.5,11.54417375]
[1770135251440,4.38334302,2281.4,2279.9,10.4926366]
[1770135251638,0.1024,2281.3,2279.7,1.09660927]
[1770135252064,0.1024,2281.3,2279.8,1.09657408]
[1770135252266,0.1024,2281.3,2279.7,1.11835422]
[1770135252569,0.1024,2281.1,2279.8,1.60194202]
[1770135252868,0.1024,2281.1,2279.6,1.09767769]
[1770135253035,0.1024,2281.1,2279.7,11.61097644]
[1770135253409,0.1024,2281.1,2279.6,0.001]
[1770135253546,1.09601052,2281.0,2279.6,0.001]
[1770135255459,2.01501052,2281.0,2279.6,0.001]
[1770135255644,1.09610662,2280.8,2279.6,0.001]
[1770135255852,0.1024,2280.7,2279.6,0.001]
[1770135256252,0.1024,2280.5,2279.6,0.001]
[1770135256572,0.1024,2280.5,2279.2,0.001]
[1770135256573,7.74186762,2280.3,2279.2,0.001]
[1770135256875,0.1024,2280.1,2278.6,0.001]
[1770135257039,0.1024,2280.1,2278.6,1.09816217]
[1770135257254,0.1024,2280.1,2278.6,0.001]
[1770135257657,0.1024,2279.9,2278.6,0.001]
[1770135259251,0.1024,2279.9,2278.4,0.001]
[1770135259252,13.88288882,2279.7,2278.4,0.001]
[1770135259462,0.1024,2279.5,2278.4,0.001]
[1770135259677,1.09677985,2279.4,2278.4,0.001]
[1770135260892,1.09677985,2279.4,2278.4,10.1688047]
[1770135261068,1.09677985,2279.4,2278.6,10.14606982]
[1770135261887,4.38654329,2279.7,2278.6,11.24320679]
[1770135262063,1.09649122,2280.0,2278.7,1.58711379]
[1770135262382,0.56736015,2279.9,2278.7,1.56537891]
[1770135262588,1.09649122,2280.0,2278.7,1.56537891]
[1770135263762,12.3532347,2280.2,2278.7,1.56537891]
[1770135263956,1.77630506,2280.0,2278.8,11.33894957]
[1770135264156,2.84636591,2280.2,2278.8,11.33894957]
[1770135264357,2.84636591,2280.2,2279.0,10.1678047]
[1770135264785,2.01544313,2280.2,2279.0,10.1678047]
[1770135264983,2.01544313,2280.2,2279.0,10.14606982]
[1770135265486,0.1024,2280.0,2278.8,0.001]
[1770135265861,0.0011,2279.2,2278.8,0.001]
[1770135266983,0.0003,2279.2,2278.8,0.001]
[1770135267659,1.09653932,2279.9,2278.8,10.14706982]
[1770135267859,1.09653932,2279.9,2278.9,11.1607768]
[1770135268067,4.38615728,2280.0,2278.9,11.1607768]
[1770135269481,4.38615728,2280.0,2278.9,12.25779048]
[1770135270086,1.09649122,2280.1,2278.9,11.1607768]
[1770135270296,1.09649122,2280.1,2278.9,12.25779263]
[1770135270589,2.17517583,2280.1,2279.0,1.75660498]
[1770135271180,2.17517583,2280.1,2278.8,0.001]
[1770135272093,0.56736015,2280.0,2278.8,0.001]
[1770135272293,1.09653932,2279.9,2278.8,0.001]
[1770135273873,1.09653932,2279.9,2279.1,10.1678047]
[1770135274096,1.09644313,2280.1,2279.2,0.02173488]
[1770135274270,1.09644313,2280.1,2279.3,11.24289779]
[1770135274470,1.09644313,2280.1,2279.4,1.56519518]
[1770135274919,1.09644313,2280.1,2278.9,12.16308409]
[1770135275268,1.09644313,2280.1,2278.9,11.06606982]
[1770135275476,1.09644313,2280.1,2278.9,10.14606982]
[1770135275776,1.09644313,2280.1,2278.9,11.24306932]
[1770135275982,1.09644313,2280.1,2279.1,1.09691951]
[1770135276181,1.09644313,2280.1,2279.0,1.09693036]
[1770135276384,1.09644313,2280.1,2279.1,1.56310656]
[1770135276579,1.09644313,2280.1,2278.8,2.01804836]
[1770135276785,1.09644313,2280.1,2278.8,0.001]
[1770135276985,8.84707242,2280.1,2278.8,0.001]
[1770135277195,1.15049059,2279.9,2278.8,0.001]
[1770135278106,5.76898344,2279.1,2278.1,0.001]
[1770135278313,0.02173488,2278.8,2277.8,0.001]
[1770135278472,1.09702049,2278.9,2277.9,10.1678047]
[1770135278869,1.09702049,2278.9,2277.9,10.14606982]
[1770135279076,1.09702049,2278.9,2277.8,0.001]
[1770135279276,2.08433336,2278.9,2277.8,0.001]
[1770135279872,3.35895883,2278.9,2278.8,0.001]
[1770135280072,3.35895883,2278.9,2277.8,0.001]
[1770135280401,2.20846824,2278.9,2277.8,0.001]
[1770135280789,0.02173488,2278.8,2277.8,0.001]
[1770135280985,0.80078036,2278.8,2277.8,0.001]
[1770135281182,0.77904548,2278.8,2277.8,0.001]
[1770135282390,1.09711677,2278.7,2277.8,0.001]
[1770135282922,1.11885165,2278.7,2277.8,0.001]
[1770135283088,1.09711677,2278.7,2277.8,0.001]
[1770135283425,0.62863642,2278.6,2277.8,0.001]
[1770135283808,0.92,2278.5,2277.8,0.001]
[1770135284181,6.11494701,2278.4,2277.4,0.001]
[1770135284381,1.09730939,2278.3,2277.4,0.001]
[1770135285089,1.09730939,2278.3,2277.0,10.14606982]
[1770135285090,0.02173488,2278.1,2277.0,10.14606982]
[1770135285300,0.02173488,2278.1,2277.0,1.10690698]
[1770135285629,0.02173488,2278.1,2276.9,0.003]
[1770135285781,0.02173488,2278.1,2276.9,10.14906982]
[1770135286421,1.09730939,2278.3,2277.1,10.14606982]
[1770135287926,1.09730939,2278.3,2277.3,10.14606982]
[1770135288119,1.09730939,2278.3,2277.4,11.2526768]
[1770135288621,4.38923758,2278.4,2277.4,12.35041636]
[1770135288821,4.38923758,2278.4,2277.4,12.35040735]
[1770135289921,4.38923758,2278.4,2277.5,10.1683998]
[1770135290239,1.09714533,2278.7,2277.5,10.14606982]
[1770135290528,1.09673173,2279.5,2277.9,10.28768722]
[1770135290725,0.02173488,2279.3,2278.0,11.20768722]
[1770135290968,0.02173488,2279.3,2277.7,1.09758688]
[1770135290969,0.02173488,2279.2,2277.7,1.09758688]
[1770135291097,0.02173488,2279.2,2277.7,1.09759193]
[1770135291304,0.12413488,2279.2,2277.8,1.35403199]
[1770135291505,10.82458073,2279.2,2277.8,1.35403199]
[1770135291732,1.09673173,2279.5,2278.1,10.28768722]
[1770135293335,1.09673173,2279.5,2278.2,10.28768722]
[1770135293508,1.09673173,2279.5,2278.3,1.13850553]
[1770135295624,4.38686291,2279.6,2278.4,1.09726123]
[1770135295850,4.38686291,2279.6,2278.4,10.54728554]
[1770135296935,4.38686291,2279.6,2278.4,10.56902042]
[1770135297525,4.38686291,2279.6,2278.5,1.09721307]
[1770135297730,4.38686291,2279.6,2278.6,1.16662335]
[1770135298464,4.38686291,2279.6,2278.6,1.18835823]
[1770135299438,4.38686291,2279.6,2278.6,1.16662335]
[1770135299637,1.09668362,2279.6,2278.7,11.64440231]
[1770135299827,0.0011,2279.9,2279.3,10.54728554]
[1770135300034,1.09754684,2280.1,2279.4,1.07863692]
[1770135300243,1.09755782,2280.1,2279.4,1.05690204]
[1770135300564,1.09754833,2280.1,2279.4,10.54728554]
[1770135300721,1.09754833,2280.1,2278.6,12.8110514]
[1770135300916,1.09754833,2280.1,2278.7,0.02173488]
[1770135301117,10.96518666,2280.0,2278.6,1.16662335]
[1770135301322,0.1024,2280.0,2278.5,11.46728554]
[1770135301549,0.1024,2280.0,2278.6,1.0971597]
[1770135301550,12.12420815,2280.0,2278.6,1.0971597]
[1770135301852,1.09653932,2279.9,2278.8,10.54728554]
[1770135302024,1.09653932,2279.9,2278.5,1.09717103]
[1770135302221,1.64491898,2279.9,2278.5,11.64445657]
[1770135302553,1.64491898,2279.9,2278.5,10.54728554]
[1770135302858,12.50770564,2279.9,2278.3,2.01729148]
[1770135303022,10.86278666,2279.6,2277.9,0.001]
[1770135303221,0.1024,2279.3,2277.9,0.001]
[1770135303416,0.92,2279.2,2278.1,1.09740115]
[1770135303648,1.09692422,2279.1,2277.9,10.54828554]
[1770135303851,1.04692422,2279.1,2277.9,10.54828554]
[1770135304051,1.04692422,2279.1,2277.9,11.64578591]
[1770135304453,1.04692422,2279.1,2277.9,11.64577962]
[1770135304625,1.04692422,2279.1,2278.1,10.56902042]
[1770135304820,1.09686387,2279.3,2278.3,0.02173488]
[1770135305027,2.01669476,2279.6,2278.7,10.56902042]
[1770135305335,2.01668469,2279.6,2278.7,10.56902042]
[1770135305519,0.92,2279.6,2278.8,1.05907553]
[1770135305721,0.0011,2279.7,2278.9,1.11875537]
[1770135305929,0.0011,2279.7,2278.8,1.05907553]
[1770135306151,0.0011,2279.7,2278.4,0.92]
[1770135306453,0.0011,2279.7,2278.6,1.09715561]
[1770135306646,0.0011,2279.7,2278.5,1.09719058]
[1770135306839,0.0011,2279.7,2278.4,5.30889221]
[1770135307042,0.0011,2279.7,2278.5,1.0971908]
[1770135307351,0.5496087,2279.7,2278.6,0.6406083]
[1770135307559,0.5496087,2279.7,2278.5,1.09721176]
[1770135308064,1.09668362,2279.6,2278.2,0.02173488]
[1770135308252,11.95947028,2279.6,2278.1,1.0973751]
[1770135308462,11.95947028,2279.6,2278.3,1.09730825]
[1770135308761,1.8054835,2279.5,2278.3,0.54868842]
[1770135308972,2.7254835,2279.5,2278.2,1.09735665]
[1770135309190,2.7254835,2279.5,2278.4,1.09724233]
[1770135309476,1.09776325,2279.7,2278.7,10.56902042]
[1770135309636,1.09776325,2279.7,2278.8,10.56902042]
[1770135309831,1.09776325,2279.7,2278.8,10.54728554]
[1770135310033,0.0011,2279.7,2278.8,11.64432929]
[1770135311135,0.0011,2279.7,2278.4,10.54728554]
[1770135311330,0.0011,2279.7,2278.5,2.15410824]
[1770135311568,0.0011,2279.7,2278.5,1.05690204]
[1770135311933,0.0011,2279.7,2278.2,2.01731945]
[1770135312141,0.0011,2279.7,2278.2,12.56460499]
[1770135312371,0.0011,2279.7,2278.3,10.56902042]
[1770135312771,0.0011,2279.7,2278.4,10.56902042]
[1770135312975,0.0011,2279.7,2278.5,1.05907553]
[1770135313764,12.55006884,2279.7,2278.5,1.05907553]
[1770135313972,12.55006884,2279.7,2278.0,16.21536902]
[1770135313973,1.19908362,2279.6,2278.0,11.82559838]
[1770135314155,12.01815983,2279.5,2278.0,12.90131279]
[1770135314464,10.86278666,2279.5,2278.0,12.90131279]
[1770135314666,1.32172435,2279.4,2278.1,1.73140528]
[1770135314968,0.92,2279.3,2278.1,1.73140528]
[1770135315977,1.09687609,2279.2,2278.1,1.73140528]
[1770135316852,1.09687609,2279.2,2278.7,0.001]
[1770135317059,1.09687609,2279.2,2278.1,2.8288018]
[1770135317265,1.09687609,2279.2,2278.2,1.80049736]
[1770135317471,1.09687609,2279.2,2278.5,0.001]
[1770135318249,1.09687609,2279.2,2278.6,0.02173488]
[1770135318752,1.09687609,2279.2,2278.5,10.57002042]
[1770135319564,5.30750438,2279.3,2278.5,10.57002042]
[1770135319565,2.01683808,2279.3,2278.5,10.57002042]
[1770135319768,2.01683808,2279.3,2278.6,1.16890165]
[1770135320265,2.01683808,2279.3,2278.6,2.26605764]
[1770135320668,0.0011,2279.5,2278.6,2.26605764]
[1770135320669,0.0011,2279.5,2279.0,10.83566673]
[1770135320868,1.09784408,2279.5,2279.0,10.83566673]
[1770135321085,1.09784408,2279.5,2278.6,13.07998574]
[1770135321259,1.09784408,2279.5,2278.7,1.74913803]
[1770135322055,0.0011,2279.5,2278.7,2.86795254]
[1770135322383,0.0011,2279.5,2278.7,3.76621766]
[1770135322554,0.0011,2279.5,2278.7,2.66913803]
[1770135322953,0.0011,2279.7,2278.8,10.81393185]
[1770135323187,0.0011,2279.7,2279.3,0.02173488]
[1770135323488,0.0011,2279.7,2279.0,0.02173488]
[1770135323702,0.0011,2279.7,2278.9,1.45801791]
[1770135324196,0.0011,2279.7,2278.9,2.55501503]
[1770135324572,0.0011,2279.7,2278.9,1.45801791]
[1770135325587,0.0011,2279.7,2278.9,2.55503758]
[1770135325798,0.0011,2279.7,2279.0,0.25550376]
[1770135326079,2.32872386,2280.6,2279.5,1.30375441]
[1770135326289,12.49489421,2281.3,2280.4,1.58065725]
[1770135326487,3.40172577,2281.3,2280.5,4.08077325]
[1770135326695,4.38346556,2281.4,2280.7,3.135865]